bitfinex/quotes_SOLUSD_20250217
["timestamp","ask_amount","ask_price","bid_price","bid_amount"]
[1739799815846,9.99648021,185.23,185.19,95.71134853]
[1739799816038,1.5793,185.31,185.19,95.71134853]
[1739799816246,1.5793,185.31,185.22,13.41184853]
[1739799816247,5.4596,185.31,185.22,13.41184853]
[1739799816447,9.99648021,185.28,185.22,13.41184853]
[1739799816637,9.99648021,185.27,185.22,13.41184853]
[1739799816850,9.99648021,185.27,185.22,90.31184853]
[1739799817232,9.99648021,185.27,185.23,5.3986]
[1739799818854,9.99648021,185.27,185.22,95.71074853]
[1739799820349,9.99648021,185.3,185.24,9.99648021]
[1739799820551,0.063,185.31,185.26,13.41184853]
[1739799820765,0.063,185.31,185.26,90.31184853]
[1739799820921,0.063,185.31,185.26,100.30832874]
[1739799821235,0.063,185.31,185.26,91.82914853]
[1739799822951,0.063,185.31,185.28,13.41184853]
[1739799824118,0.063,185.31,185.28,5.3972]
[1739799824742,0.063,185.31,185.27,13.41184853]
[1739799824937,0.063,185.31,185.27,18.80924853]
[1739799826118,0.063,185.31,185.27,95.70924853]
[1739799830049,15.75098662,185.3,185.27,90.31184853]
[1739799830228,15.75098662,185.29,185.27,76.9]
[1739799830851,15.75098662,185.28,185.27,76.9]
[1739799831634,15.75098662,185.29,185.27,76.9]
[1739799832034,15.75098662,185.29,185.25,100.30984853]
[1739799832035,15.75098662,185.29,185.26,13.41184853]
[1739799832526,15.75098662,185.29,185.25,5.398]
[1739799833341,15.75098662,185.29,185.23,13.41184853]
[1739799833542,15.75098662,185.28,185.23,18.81044853]
[1739799834358,15.75098662,185.29,185.23,34.56143515]
[1739799834943,15.75098662,185.28,185.23,18.81044853]
[1739799835747,15.75098662,185.29,185.23,34.56143515]
[1739799836566,15.81398662,185.31,185.25,13.41184853]
[1739799836778,0.063,185.31,185.26,29.16283515]
[1739799837444,15.81398662,185.31,185.25,15.75098662]
[1739799837946,0.063,185.31,185.26,34.56063515]
[1739799840852,0.063,185.31,185.27,15.75098662]
[1739799841256,0.063,185.31,185.26,34.56063515]
[1739799841672,0.063,185.31,185.27,15.75098662]
[1739799842578,0.063,185.31,185.29,13.41184853]
[1739799844261,0.063,185.31,185.29,171.81184853]
[1739799844454,0.063,185.31,185.3,29.16283515]
[1739799844671,0.063,185.31,185.3,177.20844853]
[1739799844854,0.063,185.31,185.3,171.81184853]
[1739799845751,0.063,185.31,185.3,177.20844853]
[1739799846751,0.063,185.31,185.3,187.28399253]
[1739799847955,0.063,185.31,185.3,177.20844853]
[1739799849782,0.063,185.31,185.3,188.89569253]
[1739799851186,0.063,185.31,185.3,189.89569253]
[1739799852700,29.65814871,185.36,185.31,13.41184853]
[1739799852882,29.65814871,185.36,185.35,23.48739253]
[1739799853205,29.65814871,185.36,185.35,181.88739253]
[1739799854892,29.65814871,185.36,185.35,187.28249253]
[1739799857304,29.65814871,185.36,185.35,177.20694853]
[1739799857913,29.65814871,185.36,185.35,187.28249253]
[1739799861624,29.72114871,185.36,185.35,187.28249253]
[1739799862277,29.72114871,185.36,185.35,188.28249253]
[1739799863900,2.71614871,185.36,185.35,188.28249253]
[1739799864211,4.871e-05,185.36,185.35,189.28249253]
[1739799864382,4.871e-05,185.36,185.35,190.92869253]
[1739799865818,0.063,185.46,185.45,23.48739253]
[1739799866020,0.063,185.46,185.45,181.88739253]
[1739799867301,0.063,185.46,185.45,187.27959253]
[1739799868620,0.063,185.46,185.45,188.27959253]
[1739799869025,0.063,185.46,185.45,187.27959253]
[1739799869529,0.063,185.46,185.45,189.27959253]
[1739799870439,0.063,185.46,185.45,188.27959253]
[1739799870607,0.063,185.46,185.45,187.27959253]
[1739799871238,0.063,185.46,185.45,188.27959253]
[1739799871536,0.063,185.46,185.45,189.27959253]
[1739799871833,0.063,185.46,185.45,188.27959253]
[1739799872034,0.063,185.46,185.45,187.27959253]
[1739799872731,0.063,185.46,185.45,177.20404853]
[1739799872946,0.063,185.46,185.45,187.27959253]
[1739799873736,0.063,185.46,185.45,181.88739253]
[1739799874034,0.063,185.46,185.45,171.81184853]
[1739799876630,0.063,185.46,185.43,76.9]
[1739799876830,10.138544,185.46,185.43,76.9]
[1739799877148,0.063,185.46,185.43,76.9]
[1739799877720,0.063,185.46,185.44,13.41184853]
[1739799884520,10.138544,185.46,185.44,13.41184853]
[1739799884937,0.063,185.46,185.44,13.41184853]
[1739799886834,0.063,185.46,185.43,13.41184853]
[1739799887045,0.063,185.46,185.44,10.075544]
[1739799887616,0.063,185.46,185.45,43.48739253]
[1739799888017,0.063,185.46,185.45,201.88739253]
[1739799888335,0.063,185.46,185.45,207.27959253]
[1739799889929,0.063,185.46,185.45,208.27959253]
[1739799890640,0.063,185.46,185.45,209.27959253]
[1739799891444,0.063,185.46,185.45,208.27959253]
[1739799891963,0.063,185.46,185.45,209.27959253]
[1739799892444,0.063,185.46,185.45,208.27959253]
[1739799892645,0.063,185.46,185.45,209.27959253]
[1739799893519,0.063,185.46,185.45,208.27959253]
[1739799893741,0.063,185.46,185.45,209.27959253]
[1739799894245,0.063,185.46,185.45,207.27959253]
[1739799894547,0.063,185.46,185.45,208.27959253]
[1739799894949,0.063,185.46,185.45,207.27959253]
[1739799895837,0.063,185.46,185.45,208.27959253]
[1739799896055,0.063,185.46,185.45,209.27959253]
[1739799896231,0.063,185.46,185.45,207.27959253]
[1739799896962,0.063,185.46,185.45,208.27959253]
[1739799897163,0.063,185.46,185.45,207.27959253]
[1739799897838,0.063,185.46,185.45,208.27959253]
[1739799899167,0.063,185.46,185.45,207.27959253]
[1739799899671,0.063,185.46,185.45,197.20404853]
[1739799900051,0.063,185.46,185.45,207.27959253]
[1739799900568,0.063,185.46,185.45,208.27959253]
[1739799900767,0.063,185.46,185.45,207.27959253]
[1739799909042,0.063,185.46,185.45,197.20404853]
[1739799909460,0.063,185.46,185.45,207.27959253]
[1739799910866,0.063,185.46,185.45,197.20404853]
[1739799914779,0.063,185.46,185.45,207.27959253]
[1739799919299,0.063,185.46,185.45,177.20404853]
[1739799921761,0.063,185.46,185.45,187.27959253]
[1739799923587,0.063,185.46,185.45,177.20404853]
[1739799932792,0.0001,185.46,185.45,188.27959253]
[1739799935396,0.0001,185.46,185.45,189.27959253]
[1739799935890,0.063,185.54,185.51,13.41184853]
[1739799936083,0.063,185.54,185.53,43.48739253]
[1739799936387,0.063,185.54,185.53,202.88739253]
[1739799937006,0.063,185.55,185.54,13.41184853]
[1739799937191,0.063,185.57,185.54,30.68508919]
[1739799937404,0.063,185.57,185.56,44.48739253]
[1739799937700,0.063,185.6,185.59,1.0]
[1739799937701,0.0001,185.6,185.59,1.0]
[1739799937993,0.0001,185.6,185.59,183.69521811]
[1739799938163,0.0001,185.6,185.59,182.88739253]
[1739799938979,0.0001,185.6,185.59,188.27559253]
[1739799939266,0.0001,185.6,185.59,187.27559253]
[1739799939791,0.0001,185.6,185.59,188.27559253]
[1739799940174,0.0001,185.6,185.59,187.27559253]
[1739799940374,0.0001,185.6,185.59,188.27559253]
[1739799941091,0.0001,185.6,185.59,187.27559253]
[1739799942996,0.0001,185.6,185.59,171.81184853]
[1739799943982,0.0001,185.6,185.59,177.20004853]
[1739799947279,0.0001,185.6,185.59,188.27559253]
[1739799948387,0.0001,185.6,185.59,189.27559253]
[1739799949203,0.063,185.63,185.62,21.0]
[1739799949400,0.063,185.63,185.62,45.29506971]
[1739799951398,0.063,185.63,185.62,50.68236971]
[1739799953901,0.063,185.63,185.62,209.08236971]
[1739799954087,0.063,185.63,185.62,208.27469253]
[1739799954602,0.03,185.64,185.63,14.41184853]
[1739799954798,0.03,185.65,185.64,14.41184853]
[1739799954994,0.063,185.7,185.66,20.0]
[1739799955198,0.063,185.7,185.66,209.08103782]
[1739799955510,0.0001,185.67,185.66,209.27349253]
[1739799956184,0.063,185.7,185.69,34.41184853]
[1739799956392,0.063,185.7,185.69,203.69480792]
[1739799956689,0.063,185.7,185.69,202.88739253]
[1739799957291,0.063,185.7,185.69,208.27269253]
[1739799959391,0.063,185.7,185.69,207.27269253]
[1739799960710,0.063,185.7,185.69,197.19714853]
[1739799961110,0.063,185.7,185.69,208.27269253]
[1739799966132,0.0001,185.71,185.7,14.41184853]
[1739799966434,0.0001,185.71,185.7,26.29467081]
[1739799967209,0.0001,185.73,185.72,19.79624853]
[1739799967405,0.0001,185.73,185.72,30.67901987]
[1739799968730,0.063,185.74,185.73,14.41184853]
[1739799969020,0.0001,185.74,185.73,182.88739253]
[1739799971021,0.0001,185.74,185.73,188.27149253]
[1739799971314,0.0001,185.74,185.73,220.73149253]
[1739799971806,0.0001,185.74,185.73,187.27149253]
[1739799972005,0.0001,185.74,185.73,188.27149253]
[1739799975218,0.0001,185.74,185.73,187.27149253]
[1739799978220,0.0001,185.74,185.73,188.27149253]
[1739799979517,0.0001,185.74,185.73,177.19594853]
[1739799979713,0.0001,185.74,185.73,187.27149253]
[1739799979918,0.0001,185.74,185.73,188.27149253]
[1739799981011,0.0001,185.74,185.73,187.27149253]
[1739799985212,0.0001,185.74,185.73,188.27149253]
[1739799986739,0.0001,185.74,185.73,187.27149253]
[1739799986943,0.0001,185.74,185.73,177.19594853]
[1739799987126,0.0001,185.74,185.73,171.81184853]
[1739799987747,0.0001,185.74,185.73,94.91184853]
[1739799988850,0.0001,185.74,185.73,100.29594853]
[1739799990033,0.0001,185.74,185.73,177.19594853]
[1739799990944,0.0001,185.74,185.73,177.25894853]
[1739799994145,0.0001,185.74,185.73,171.87484853]
[1739799994459,0.0001,185.74,185.73,177.25894853]
[1739800003171,0.0001,185.74,185.73,171.87484853]
[1739800004470,10.075644,185.74,185.73,94.97484853]
[1739800004761,10.075644,185.74,185.73,81.563]
[1739800005263,10.075644,185.74,185.73,0.063]
[1739800005837,7.9722,185.73,185.67,0.063]
[1739800006035,10.075544,185.68,185.67,0.063]
[1739800008162,10.075544,185.72,185.68,13.41184853]
[1739800008460,0.0001,185.74,185.7,13.41184853]
[1739800008659,0.0001,185.74,185.7,100.38739253]
[1739800008961,0.0001,185.74,185.73,33.41184853]
[1739800009165,0.0001,185.74,185.73,110.31184853]
[1739800009541,0.0001,185.74,185.73,120.38739253]
[1739800009866,0.0001,185.74,185.73,125.77149253]
[1739800010046,0.0001,185.74,185.73,115.69594853]
[1739800010570,0.0001,185.74,185.73,95.69594853]
[1739800010783,0.0001,185.74,185.73,90.31184853]
[1739800011074,10.075644,185.74,185.73,13.41184853]
[1739800012163,0.0001,185.74,185.73,18.79594853]
[1739800014466,0.0001,185.74,185.73,34.46834938]
[1739800014767,0.0001,185.74,185.73,192.93134938]
[1739800015573,0.0001,185.74,185.73,177.25894853]
[1739800018164,0.0001,185.74,185.73,94.97484853]
[1739800018774,0.0001,185.74,185.73,100.35894853]
[1739800019075,0.0001,185.74,185.73,94.97484853]
[1739800019583,0.0001,185.74,185.73,100.35894853]
[1739800020952,0.0001,185.74,185.73,94.97484853]
[1739800023576,0.0001,185.74,185.73,100.35894853]
[1739800023778,0.0001,185.74,185.73,94.97484853]
[1739800024760,0.0001,185.74,185.73,100.35894853]
[1739800028881,0.0001,185.74,185.73,94.97484853]
[1739800030180,15.67250085,185.74,185.73,94.97484853]
[1739800030480,15.67250085,185.74,185.73,81.563]
[1739800032274,0.0001,185.74,185.73,100.35894853]
[1739800032475,0.0001,185.74,185.73,94.97484853]
[1739800032870,15.67250085,185.74,185.73,94.97484853]
[1739800033889,15.67250085,185.74,185.73,81.563]
[1739800034090,22.09000085,185.74,185.73,0.063]
[1739800034393,23.59890085,185.74,185.73,0.063]
[1739800034691,17.96717694,185.74,185.73,0.063]
[1739800034894,23.35097694,185.74,185.73,0.063]
[1739800039689,10.04067694,185.68,185.67,0.063]
[1739800044193,10.04067694,185.69,185.67,0.063]
[1739800044577,15.68857196,185.68,185.67,0.063]
[1739800047101,21.07417196,185.68,185.67,0.063]
[1739800048197,15.68857196,185.68,185.67,0.063]
[1739800049580,21.07417196,185.68,185.67,0.063]
[1739800059506,36.76274392,185.68,185.67,0.063]
[1739800059917,7.6743,185.67,185.59,158.463]
[1739800060217,15.68857196,185.6,185.59,0.063]
[1739800061698,15.68857196,185.62,185.59,0.063]
[1739800061894,15.68857196,185.64,185.59,0.063]
[1739800062996,15.68857196,185.63,185.59,13.47484853]
[1739800063923,15.68857196,185.63,185.6,5.3879]
[1739800064093,15.68857196,185.65,185.61,13.41184853]
[1739800064401,15.68857196,185.63,185.61,13.41184853]
[1739800064589,10.04577386,185.63,185.59,0.063]
[1739800065595,10.04577386,185.66,185.6,13.41184853]
[1739800065930,10.04577386,185.65,185.6,13.41184853]
[1739800066227,10.04577386,185.65,185.61,5.3876]
[1739800066886,10.04577386,185.66,185.61,5.3876]
[1739800067402,10.04577386,185.65,185.61,5.3876]
[1739800068014,10.04577386,185.66,185.61,5.3876]
[1739800070599,10.04577386,185.65,185.61,5.3876]
[1739800071220,10.04577386,185.65,185.62,13.41184853]
[1739800071600,5.3847,185.71,185.62,13.41184853]
[1739800071601,10.04577386,185.66,185.62,13.41184853]
[1739800071816,10.04577386,185.66,185.63,5.387]
[1739800072408,10.04577386,185.67,185.63,5.387]
[1739800073317,10.04577386,185.65,185.62,13.41184853]
[1739800073919,10.04577386,185.65,185.62,18.79904853]
[1739800077619,10.07577386,185.67,185.62,18.79904853]
[1739800078322,0.03,185.67,185.62,18.79904853]
[1739800078705,10.07577386,185.67,185.62,18.79904853]
[1739800081612,10.07577386,185.67,185.62,177.19904853]
[1739800082411,10.04577386,185.66,185.62,177.19904853]
[1739800082612,10.04577386,185.66,185.62,171.81184853]
[1739800082812,10.04577386,185.65,185.62,171.81184853]
[1739800083531,10.04577386,185.63,185.59,0.063]
[1739800083710,10.04577386,185.61,185.59,0.063]
[1739800084032,10.04577386,185.63,185.59,0.063]
[1739800084622,10.04577386,185.64,185.59,0.063]
[1739800084931,10.04577386,185.65,185.59,0.063]
[1739800086030,10.04577386,185.65,185.6,13.41184853]
[1739800086607,10.04577386,185.66,185.6,13.41184853]
[1739800087529,10.04577386,185.66,185.6,171.81184853]
[1739800088215,10.04577386,185.66,185.62,13.41184853]
[1739800089328,10.04577386,185.65,185.62,13.41184853]
[1739800089708,10.04577386,185.66,185.62,13.41184853]
[1739800090135,10.04577386,185.66,185.61,18.79944853]
[1739800093548,10.04577386,185.66,185.61,100.29944853]
[1739800094431,10.07577386,185.67,185.61,100.29944853]
[1739800097026,10.04577386,185.66,185.61,100.29944853]
[1739800097358,10.04577386,185.65,185.61,100.29944853]
[1739800098042,10.04577386,185.64,185.61,100.29944853]
[1739800100874,10.04577386,185.65,185.61,100.29944853]
[1739800101265,10.04577386,185.64,185.61,100.29944853]
[1739800101658,10.04577386,185.65,185.61,100.29944853]
[1739800109576,10.04577386,185.65,185.61,100.36244853]
[1739800119886,10.04577386,185.66,185.61,100.36244853]
[1739800120177,10.07577386,185.67,185.61,100.36244853]
[1739800121681,10.04577386,185.66,185.61,100.36244853]
[1739800123485,10.04577386,185.65,185.61,100.36244853]
[1739800124583,10.04577386,185.64,185.61,100.36244853]
[1739800130193,0.03,185.67,185.61,100.36244853]
[1739800130397,10.04577386,185.66,185.61,100.36244853]
[1739800133491,10.04577386,185.64,185.61,100.36244853]
[1739800134219,10.04577386,185.65,185.61,100.36244853]
[1739800134725,10.04577386,185.64,185.61,100.36244853]
[1739800138207,10.04577386,185.65,185.61,100.36244853]
[1739800144025,10.04577386,185.66,185.61,100.36244853]
[1739800144235,0.03,185.67,185.61,100.36244853]
[1739800144400,0.03,185.67,185.62,10.04577386]
[1739800144605,0.03,185.67,185.63,10.04577386]
[1739800145228,10.07577386,185.67,185.62,13.41184853]
[1739800145433,10.04577386,185.66,185.62,13.41184853]
[1739800146236,0.03,185.67,185.63,5.387]
[1739800149919,0.03,185.67,185.64,13.41184853]
[1739800150831,0.03,185.67,185.66,13.41184853]
[1739800151533,0.03,185.67,185.63,81.5]
[1739800151731,10.04577386,185.66,185.63,81.5]
[1739800152040,10.04577386,185.66,185.64,13.41184853]
[1739800153442,10.04577386,185.65,185.64,13.41184853]
[1739800155735,15.43217386,185.65,185.61,0.063]
[1739800155915,10.04577386,185.62,185.61,0.063]
[1739800157135,15.43307386,185.62,185.61,0.063]
[1739800159821,15.43307386,185.62,185.61,0.063]
[1739800161460,20.0,185.6,185.59,0.063]
[1739800161748,77.2508693,185.6,185.59,0.063]
[1739800162253,37.06777386,185.6,185.59,0.063]
[1739800164340,11.67987386,185.6,185.59,0.063]
[1739800164537,10.04577386,185.6,185.59,0.063]
[1739800166936,15.43367386,185.6,185.59,0.063]
[1739800168816,35.43367386,185.6,185.59,0.063]
[1739800169034,10.04577386,185.6,185.59,0.063]
[1739800170648,10.04577386,185.62,185.59,0.063]
[1739800170970,10.04577386,185.63,185.59,0.063]
[1739800171530,10.04577386,185.64,185.59,0.063]
[1739800172034,10.04577386,185.65,185.6,13.41184853]
[1739800172743,10.04577386,185.64,185.6,5.3877]
[1739800172948,10.04577386,185.62,185.59,0.063]
[1739800173449,10.04577386,185.62,185.6,13.41184853]
[1739800174828,10.04577386,185.62,185.59,0.063]
[1739800176450,10.04577386,185.63,185.6,13.41184853]
[1739800176865,10.04577386,185.61,185.59,0.063]
[1739800177066,10.04577386,185.6,185.59,0.063]
[1739800178747,15.43367386,185.6,185.59,0.063]
[1739800180076,10.04577386,185.6,185.59,0.063]
[1739800186367,0.03,185.61,185.59,0.063]
[1739800191562,10.07577386,185.61,185.59,0.063]
[1739800197095,0.03,185.61,185.59,0.063]
[1739800199370,0.03,185.61,185.59,5.4512]
[1739800202202,0.03,185.61,185.6,13.41184853]
[1739800202400,0.03,185.61,185.6,18.79974853]
[1739800202782,0.03,185.61,185.6,28.84552239]
[1739800204677,0.03,185.61,185.6,30.44602239]
[1739800204881,0.03,185.67,185.64,13.41184853]
[1739800205302,10.04577386,185.66,185.6,175.43417386]
[1739800205502,10.04577386,185.64,185.6,163.7879]
[1739800205680,10.04577386,185.63,185.59,5.4511]
[1739800205880,10.04577386,185.62,185.59,0.063]
[1739800207511,10.04577386,185.61,185.59,0.063]
[1739800211284,10.04577386,185.6,185.59,0.063]
[1739800212684,15.43367386,185.6,185.59,0.063]
[1739800217316,10.04577386,185.6,185.59,0.063]
[1739800217518,0.03,185.61,185.59,0.063]
[1739800217727,10.07577386,185.61,185.59,0.063]
[1739800217906,10.04577386,185.6,185.59,0.063]
[1739800220502,15.43367386,185.6,185.59,0.063]
[1739800223327,10.04577386,185.6,185.59,0.063]
[1739800223832,15.43367386,185.6,185.59,0.063]
[1739800228223,10.04577386,185.6,185.59,0.063]
[1739800229295,15.43367386,185.6,185.59,0.063]
[1739800229495,10.04577386,185.6,185.59,0.063]
[1739800231439,15.43367386,185.6,185.59,0.063]
[1739800260678,5.4177,185.61,185.59,0.063]
[1739800260858,0.03,185.61,185.59,0.063]
[1739800264658,0.03,185.61,185.6,23.45762239]
[1739800265966,0.03,185.61,185.59,0.063]
[1739800266295,0.03,185.61,185.59,13.47484853]
[1739800267003,0.03,185.61,185.59,0.063]
[1739800276430,10.07577386,185.61,185.59,0.063]
[1739800277106,0.03,185.61,185.59,0.063]
[1739800282226,0.03,185.61,185.59,13.47484853]
[1739800282822,0.03,185.61,185.59,10.10877386]
[1739800283726,0.03,185.61,185.6,28.84552239]
[1739800287927,0.03,185.67,185.63,20.0]
[1739800288111,0.03,185.67,185.66,10.04577386]
[1739800288434,0.03,185.67,185.66,13.41184853]
[1739800290134,10.07577386,185.67,185.6,10.04577386]
[1739800290342,10.04577386,185.66,185.6,10.04577386]
[1739800290621,10.04577386,185.65,185.59,10.10877386]
[1739800290833,10.04577386,185.65,185.6,13.41184853]
[1739800291203,10.04577386,185.66,185.6,23.45762239]
[1739800291525,15.43197386,185.66,185.6,23.45762239]
[1739800291731,0.03,185.67,185.63,10.04577386]
[1739800292428,0.03,185.67,185.64,13.41184853]
[1739800292735,0.03,185.67,185.66,23.45762239]
[1739800294225,0.03,185.67,185.66,28.84372239]
[1739800294425,0.03,185.67,185.66,13.41184853]
[1739800295333,0.03,185.67,185.64,15.43247386]
[1739800296438,0.03,185.67,185.65,13.41184853]
[1739800297915,0.03,185.67,185.66,5.3861]
[1739800298332,0.03,185.67,185.66,28.84372239]
[1739800300046,0.03,185.67,185.66,13.41184853]
[1739800302318,0.03,185.67,185.66,18.79794853]
[1739800302518,0.03,185.67,185.66,13.41184853]
[1739800311437,0.03,185.67,185.62,10.04577386]
[1739800311631,0.03,185.67,185.63,13.41184853]
[1739800313838,10.04577386,185.64,185.61,0.063]
[1739800314644,10.04577386,185.63,185.61,0.063]
[1739800314847,10.04577386,185.62,185.61,0.063]
[1739800320548,10.04577386,185.64,185.61,0.063]
[1739800323942,15.43247386,185.64,185.61,0.063]
[1739800324652,10.04577386,185.64,185.61,0.063]
[1739800324948,82.3,185.65,185.61,0.063]
[1739800325128,82.3,185.65,185.61,10.10877386]
[1739800325528,0.03,185.67,185.64,13.41184853]
[1739800325745,0.03,185.67,185.64,10.04577386]
[1739800326735,0.03,185.67,185.65,5.3864]
[1739800327045,0.03,185.67,185.66,13.41184853]
[1739800328755,0.03,185.67,185.65,13.41184853]
[1739800328939,0.03,185.67,185.66,10.04577386]
[1739800331173,0.03,185.67,185.66,28.84372239]
[1739800339460,0.03,185.67,185.66,13.41184853]
[1739800343945,0.03,185.67,185.66,18.79794853]
[1739800345240,0.03,185.67,185.66,13.41184853]
[1739800347077,0.03,185.67,185.66,18.79794853]
[1739800347244,0.03,185.67,185.66,28.84372239]
[1739800348741,0.03,185.67,185.66,29.6512658]
[1739800351141,0.03,185.67,185.66,28.84372239]
[1739800351747,0.0001,185.67,185.66,28.84372239]
[1739800351953,0.0001,185.67,185.66,111.15128425]
[1739800352271,0.0001,185.67,185.66,110.34372239]
[1739800353571,0.0001,185.67,185.66,111.34372239]
[1739800354069,0.03,185.73,185.71,13.41184853]
[1739800354365,0.03,185.73,185.72,23.45762239]
[1739800355667,0.03,185.73,185.72,28.84202239]
[1739800356273,0.0001,185.74,185.73,13.41184853]
[1739800356453,0.0001,185.74,185.73,23.45762239]
[1739800357849,0.0001,185.74,185.72,23.45762239]
[1739800358060,0.0001,185.74,185.73,13.41184853]
[1739800359449,0.0001,185.74,185.71,5.3846]
[1739800359450,0.0001,185.74,185.71,10.04577386]
[1739800359849,0.0001,185.74,185.72,13.41184853]
[1739800360279,0.0001,185.74,185.71,13.41184853]
[1739800360775,0.0001,185.74,185.71,23.45762239]
[1739800363972,0.0001,185.74,185.71,13.41184853]
[1739800364168,0.0001,185.74,185.69,15.43097386]
[1739800364371,0.0001,185.74,185.7,13.41184853]
[1739800366161,5.3839,185.74,185.7,13.41184853]
[1739800366573,15.42967386,185.74,185.68,10.04577386]
[1739800366777,10.04577386,185.73,185.66,35.49487386]
[1739800366972,10.04577386,185.72,185.66,30.10877386]
[1739800367163,5.3839,185.74,185.66,30.10877386]
[1739800367164,10.04577386,185.71,185.66,20.063]
[1739800367360,10.04577386,185.71,185.67,13.41184853]
[1739800368174,15.43067386,185.71,185.66,13.47484853]
[1739800368570,10.04577386,185.73,185.67,10.04577386]
[1739800368779,15.42997386,185.73,185.67,10.04577386]
[1739800368969,5.3842,185.73,185.67,10.04577386]
[1739800369775,15.42997386,185.73,185.67,10.04577386]
[1739800370165,15.42997386,185.73,185.67,13.41184853]
[1739800370774,15.42997386,185.73,185.67,5.3858]
[1739800371079,15.42997386,185.73,185.67,13.41184853]
[1739800371580,10.04577386,185.72,185.66,0.063]
[1739800372685,10.04577386,185.72,185.66,23.52062239]
[1739800372888,87.6847,185.71,185.66,23.52062239]
[1739800374061,87.6847,185.71,185.66,13.47484853]
[1739800374261,97.73047386,185.71,185.66,13.47484853]
[1739800376194,87.6847,185.71,185.66,13.47484853]
[1739800376385,97.73047386,185.71,185.66,13.47484853]
[1739800380288,10.04577386,185.7,185.66,13.47484853]
[1739800382477,97.73047386,185.71,185.66,18.86094853]
[1739800382967,97.73047386,185.71,185.66,13.47484853]
[1739800384388,92.34577386,185.71,185.66,13.47484853]
[1739800384570,92.34577386,185.71,185.66,18.86094853]
[1739800384893,82.3,185.71,185.68,10.04577386]
[1739800385987,82.3,185.71,185.67,23.45762239]
[1739800386370,82.3,185.71,185.67,28.84322239]
[1739800387391,82.3,185.71,185.67,18.79744853]
[1739800388392,97.73057386,185.71,185.66,0.063]
[1739800389473,10.04577386,185.69,185.66,0.063]
[1739800389671,10.04577386,185.67,185.66,0.063]
[1739800393284,93.91187386,185.68,185.66,0.063]
[1739800393675,82.3,185.67,185.66,0.063]
[1739800393994,82.3,185.71,185.66,10.10877386]
[1739800394177,82.3,185.71,185.69,13.41184853]
[1739800394780,82.3,185.71,185.7,23.45762239]
[1739800394994,0.03,185.73,185.71,13.41184853]
[1739800395494,0.03,185.73,185.72,5.3844]
[1739800396983,0.03,185.73,185.68,10.04577386]
[1739800397184,10.04577386,185.72,185.67,5.3858]
[1739800397506,10.04577386,185.71,185.67,13.41184853]
[1739800398303,10.04577386,185.71,185.66,0.063]
[1739800398484,10.04577386,185.7,185.66,0.063]
[1739800398684,82.3,185.72,185.66,0.063]
[1739800398893,10.04577386,185.71,185.66,0.063]
[1739800400200,92.34577386,185.72,185.67,13.41184853]
[1739800401104,92.34577386,185.72,185.67,18.79764853]
[1739800401507,82.3,185.72,185.67,28.84342239]
[1739800401987,82.3,185.72,185.68,10.04577386]
[1739800402615,0.03,185.73,185.68,10.04577386]
[1739800403388,0.03,185.73,185.69,18.79714853]
[1739800405816,10.04577386,185.72,185.67,5.3856]
[1739800406098,10.04577386,185.72,185.66,0.063]
[1739800406306,10.04577386,185.71,185.66,5.4491]
[1739800406513,10.04577386,185.7,185.67,13.41184853]
[1739800407310,5.3846,185.72,185.67,13.41184853]
[1739800407311,10.04577386,185.71,185.67,5.3858]
[1739800407610,10.04577386,185.71,185.66,0.063]
[1739800407802,10.04577386,185.71,185.67,13.41184853]
[1739800408391,92.34577386,185.72,185.67,13.41184853]
[1739800409108,92.34577386,185.72,185.68,5.3856]
[1739800410211,82.3,185.72,185.69,13.41184853]
[1739800411983,82.3,185.72,185.7,5.385]
[1739800412390,82.3,185.72,185.71,13.41184853]
[1739800412912,0.03,185.73,185.71,13.41184853]
[1739800414517,0.03,185.73,185.71,18.79634853]
[1739800417415,0.03,185.73,185.71,28.84212239]
[1739800418097,0.03,185.73,185.71,23.45762239]